bitfinex/quotes_ETHUSD_20250319
["timestamp","ask_amount","ask_price","bid_price","bid_amount"]
[1742406003710,20.78619864,2030.4,2030.3,0.0680678]
[1742406003872,20.12975385,2030.4,2030.3,0.0680678]
[1742406004402,3.55,2030.3,2029.8,4.92645]
[1742406004576,0.55,2030.3,2029.8,4.92642]
[1742406004775,2.17967692,2030.2,2029.8,4.92642]
[1742406005114,5.47541,2030.3,2029.8,4.92642]
[1742406005277,9.85148,2030.2,2029.7,4.92681]
[1742406005601,4.55045923,2029.9,2029.6,4.92696]
[1742406005774,9.60345923,2029.9,2029.5,4.92719]
[1742406006175,9.60345923,2029.9,2029.6,4.92707]
[1742406006681,9.60345923,2029.9,2029.6,4.92703]
[1742406006877,4.55045923,2029.7,2029.3,4.92767]
[1742406007081,4.55045923,2029.7,2029.4,4.9274]
[1742406007280,0.7614,2029.4,2028.3,0.9628907]
[1742406007504,0.7614,2029.4,2028.2,0.1214711]
[1742406007505,0.7614,2028.9,2028.2,0.1214711]
[1742406007692,0.7614,2028.3,2028.2,0.1214711]
[1742406007935,14.31263,2028.3,2028.2,1.1e-06]
[1742406008277,14.34963,2028.3,2028.2,1.1e-06]
[1742406008625,0.7614,2028.3,2028.2,1.1e-06]
[1742406008922,0.55,2028.3,2028.2,1.1e-06]
[1742406009134,4.55045923,2028.3,2028.2,1.1e-06]
[1742406009277,8.29809,2027.7,2027.6,0.04930859]
[1742406009478,3.0,2027.7,2026.7,0.7772]
[1742406009779,0.55,2027.9,2027.7,4.93149]
[1742406009977,4.91685923,2028.3,2027.9,4.93101]
[1742406010177,4.91685923,2028.3,2027.4,3.7772]
[1742406010178,0.55,2028.2,2027.4,3.7772]
[1742406010424,0.3664,2028.3,2027.8,4.93129]
[1742406010627,0.3664,2028.3,2028.0,4.93083]
[1742406010779,0.3664,2028.3,2027.5,0.870984]
[1742406011099,0.3664,2028.3,2027.4,5.32765923]
[1742406011298,0.55,2028.5,2028.1,4.93071]
[1742406011476,4.55045923,2028.4,2027.9,4.93096]
[1742406011677,4.55045923,2028.0,2027.4,0.7772]
[1742406011877,4.55045923,2028.0,2027.2,0.0746229]
[1742406011878,4.93266,2027.3,2027.2,0.0746229]
[1742406012077,8.59372523,2027.3,2026.2,0.1214711]
[1742406012278,0.828774,2027.2,2026.2,0.1214711]
[1742406012472,5.70021,2027.2,2026.6,4.93425]
[1742406012708,0.7975,2028.0,2027.0,0.8174]
[1742406012908,0.7975,2028.5,2027.1,0.04931568]
[1742406013089,4.93157,2027.8,2027.3,4.9326]
[1742406013289,4.93116,2028.0,2027.1,4.93315]
[1742406013476,0.55,2028.0,2027.6,4.93182]
[1742406013676,5.72776,2028.3,2027.6,4.93179]
[1742406013880,5.72776,2028.3,2027.3,5.733]
[1742406013881,0.7975,2028.3,2027.9,4.93103]
[1742406014121,6.37945,2028.4,2028.1,4.93065]
[1742406014321,0.7805,2028.6,2027.7,0.803]
[1742406014552,0.7805,2028.6,2028.2,9.86063]
[1742406014712,0.7805,2028.6,2028.3,4.93019]
[1742406014918,10.68587,2029.0,2028.5,4.92964]
[1742406015123,9.85786,2028.9,2028.4,4.92996]
[1742406015323,4.9289,2028.9,2028.4,4.92988]
[1742406015523,4.9289,2028.9,2028.4,9.85971]
[1742406015749,0.8285,2029.0,2028.6,4.92946]
[1742406016046,0.8285,2029.0,2028.6,9.85875]
[1742406016348,6.27583592,2029.3,2028.8,4.92879]
[1742406016661,1.34788592,2029.3,2028.8,4.92879]
[1742406016824,0.8167,2029.3,2029.1,4.92817]
[1742406017023,4.74160932,2029.7,2029.0,4.9284]
[1742406017024,5.74315,2029.6,2029.0,4.9284]
[1742406017227,4.92745,2029.5,2029.0,4.92849]
[1742406017542,4.92761,2029.4,2028.9,4.92869]
[1742406017739,4.92763,2029.4,2028.9,4.92864]
[1742406017939,0.06160124,2029.3,2028.5,4.92963]
[1742406018111,0.06160124,2029.3,2028.1,22.33346617]
[1742406018112,4.92937,2028.7,2028.1,0.7645]
[1742406018440,5.47926,2028.7,2028.2,4.93035]
[1742406018623,4.92926,2028.7,2028.2,4.93029]
[1742406019016,6.5273,2028.8,2028.0,4.93096]
[1742406019017,0.7933,2028.8,2028.0,4.93096]
[1742406019213,0.7933,2029.2,2028.7,4.92908]
[1742406019452,0.7933,2029.2,2028.4,4.92986]
[1742406019453,1.638798,2029.4,2029.0,4.92842]
[1742406019623,5.71511,2029.6,2028.7,4.92926]
[1742406019947,1.45293192,2029.9,2029.1,4.92818]
[1742406020150,0.7879,2030.0,2029.7,4.92672]
[1742406020316,0.7879,2030.3,2029.9,4.92631]
[1742406020645,0.7879,2030.3,2029.6,5.741]
[1742406020646,5.71343,2030.3,2029.6,5.741]
[1742406020846,0.7879,2030.3,2030.0,4.92597]
[1742406021067,0.7879,2030.3,2029.9,4.92634]
[1742406021222,0.7879,2030.3,2029.9,4.92622]
[1742406021537,0.7821,2030.7,2030.2,4.92548]
[1742406021845,22.787,2031.0,2030.0,5.79725794]
[1742406021846,22.787,2031.0,2030.6,4.92448]
[1742406022013,0.7821,2031.1,2030.5,4.92472]
[1742406022213,0.7821,2031.1,2030.6,4.92465]
[1742406022432,0.7821,2031.1,2030.5,5.753]
[1742406022624,4.74160932,2030.8,2029.9,6.253622]
[1742406022826,4.74160932,2030.8,2029.3,21.9658]
[1742406022827,0.7543,2030.4,2029.6,4.92703]
[1742406023024,0.55,2030.3,2029.6,4.92694]
[1742406023246,0.7543,2030.4,2029.8,4.92644]
[1742406023413,0.47416093,2030.7,2030.2,4.92556]
[1742406023613,0.47416093,2030.7,2029.5,0.36219927]
[1742406023614,4.92465,2030.6,2029.4,0.7648]
[1742406023844,4.92537,2030.4,2029.7,4.92665]
[1742406024044,4.74160932,2030.5,2029.9,4.92612]
[1742406024245,11.43964,2030.8,2029.8,5.791]
[1742406024447,4.92443,2030.7,2030.0,4.92587]
[1742406024623,4.92468,2030.6,2030.0,9.85184]
[1742406024946,4.92468,2030.6,2029.9,4.92614]
[1742406025148,4.92468,2030.6,2029.4,4.13528875]
[1742406025149,3.0,2030.4,2029.7,4.92683]
[1742406025328,3.0,2030.4,2029.9,4.92631]
[1742406025526,3.0,2030.6,2030.0,4.92593]
[1742406025849,0.7543,2030.8,2030.5,4.92487]
[1742406026048,0.7543,2030.8,2030.5,4.92476]
[1742406026217,3.0,2031.0,2030.5,9.84952]
[1742406026417,0.8015,2031.1,2030.5,4.92473]
[1742406026644,0.8015,2031.1,2030.4,5.795]
[1742406026963,0.8015,2031.5,2030.5,0.5795]
[1742406027168,4.92271,2031.4,2030.8,4.92398]
[1742406027474,0.8015,2031.5,2030.8,5.801]
[1742406027778,0.8015,2032.1,2030.9,4.97315372]
[1742406027920,4.92082,2032.2,2031.5,4.92233]
[1742406028265,3.0,2032.3,2031.6,5.852]
[1742406028567,0.8015,2032.5,2031.9,4.92134]
[1742406028854,6.1114711,2034.4,2034.1,4.91602]
[1742406029175,6.1114711,2034.4,2033.0,0.769]
[1742406029176,0.49252208,2035.5,2034.5,4.91497]
[1742406029334,0.49252208,2035.5,2034.7,0.769]
[1742406029542,4.91231,2035.7,2034.8,0.6789]
[1742406029740,4.9109,2036.3,2035.4,4.91302]
[1742406030169,6.1804711,2036.4,2035.7,4.91222]
[1742406030348,6.1804711,2036.4,2035.9,4.91181]
[1742406030565,3.421404,2035.9,2035.1,4.91363]
[1742406030885,0.1214711,2036.4,2035.3,9.65488932]
[1742406031180,0.1214711,2036.4,2035.2,0.441463]
[1742406031181,0.1214711,2036.4,2036.0,4.91156]
[1742406031383,0.1214711,2036.4,2035.7,0.7682]
[1742406031595,0.1214711,2036.4,2036.3,4.91086]
[1742406032364,0.1214711,2036.4,2036.3,8.71366]
[1742406032669,17.032,2037.3,2037.0,4.90908]
[1742406032837,0.0746229,2037.5,2037.0,4.90908]
[1742406033038,0.0880303,2037.2,2037.0,4.90908]
[1742406033357,0.0746229,2037.5,2036.6,6.215]
[1742406033358,0.0746229,2037.5,2037.4,4.90821]
[1742406033974,0.0746229,2037.5,2036.7,0.7721]
[1742406034143,0.0746229,2037.5,2036.3,11.2828907]
[1742406034144,4.90881,2037.2,2036.8,0.04908226]
[1742406034343,6.234,2037.2,2036.5,5.9222455]
[1742406034567,0.09060601,2037.1,2036.5,1.0119755]
[1742406034867,6.327,2037.0,2036.5,4.9592348]
[1742406035054,0.6417606,2036.9,2035.3,10.80160932]
[1742406035366,0.6417606,2036.9,2035.0,6.361]
[1742406035367,6.428,2036.8,2035.5,4.91279]
[1742406035569,6.428,2036.8,2035.5,4.91273]
[1742406035570,3.55,2036.5,2035.5,4.91273]
[1742406035748,24.413017,2036.4,2035.3,4.91313]
[1742406036077,24.413017,2036.4,2034.9,6.06]
[1742406036078,0.55,2036.3,2035.4,4.91285]
[1742406036366,4.91285,2035.4,2034.9,6.06]
[1742406036538,4.91285,2035.4,2034.8,3.0]
[1742406036539,6.605,2035.3,2034.8,3.0]
[1742406036737,6.69208427,2035.3,2034.6,4.91487]
[1742406036939,9.0614927,2035.3,2034.5,4.91499]
[1742406037334,9.0614927,2035.3,2034.7,4.91449]
[1742406037534,9.0614927,2035.3,2033.8,4.91668]
[1742406037741,0.55,2035.1,2034.2,4.91576]
[1742406037956,0.06143662,2035.0,2034.5,4.91516]
[1742406038191,4.82804536,2035.0,2034.1,4.91598]
[1742406038336,0.97418454,2034.9,2034.2,4.91588]
[1742406038540,4.91494,2034.7,2033.7,5.73388]
[1742406038763,16.999,2034.6,2033.7,4.91698]
[1742406038966,4.976807,2034.5,2033.7,4.91698]
[1742406039166,4.976807,2034.5,2033.4,4.9177]
[1742406039167,0.8019,2034.3,2033.4,4.9177]
[1742406039368,6.707,2034.2,2033.2,0.7767]
[1742406039569,0.328125,2034.5,2033.4,4.74160932]
[1742406039871,0.07589814,2034.1,2034.0,9.65802932]
[1742406040034,6.728,2035.3,2033.8,3.8292]
[1742406040238,4.91384,2035.1,2033.9,0.85708093]
[1742406040465,4.91512,2034.6,2033.8,0.8292]
[1742406040633,4.91512,2034.6,2033.3,4.91797]
[1742406040634,5.53340932,2034.4,2032.9,0.1]
[1742406040968,4.74160932,2033.8,2032.2,0.7832]
[1742406041185,4.91802,2033.4,2032.2,0.7832]
[1742406041472,0.7962,2033.4,2032.2,0.7832]
[1742406041642,0.07148096,2033.3,2032.3,0.570405]
[1742406041851,0.07148096,2033.3,2032.4,4.79079365]
[1742406042045,0.07148096,2033.3,2033.2,7.91835]
[1742406042281,9.83357,2033.9,2032.7,4.9194]
[1742406042438,7.6112,2034.1,2033.1,3.0]
[1742406042643,0.07205772,2033.8,2032.9,0.55]
[1742406042945,0.07101503,2033.7,2033.1,3.0]
[1742406043149,0.07101503,2033.7,2033.3,0.55]
[1742406043453,6.815,2034.1,2033.4,9.83556]
[1742406043652,0.07121248,2033.6,2033.5,4.91762]
[1742406043853,6.796,2034.9,2033.5,0.0491604]
[1742406044172,0.75627,2034.8,2033.9,4.91647]
[1742406044482,0.82857525,2034.8,2034.1,4.91615]
[1742406044692,0.07230525,2034.8,2034.1,4.96517812]
[1742406044855,0.07230525,2034.8,2034.3,0.55]
[1742406045056,0.07230525,2034.8,2034.2,5.70468]
[1742406045379,0.07230525,2034.8,2034.2,5.70462]
[1742406045555,0.07230525,2034.8,2034.4,0.55]
[1742406045759,0.07230525,2034.8,2034.7,0.55]
[1742406045970,6.798,2035.6,2034.7,5.46472]
[1742406046361,0.07343276,2035.4,2034.7,5.46456]
[1742406046571,6.798,2035.6,2034.7,5.46456]
[1742406046792,0.07328411,2035.3,2034.8,4.91446]
[1742406046979,6.798,2035.6,2034.8,4.91426]
[1742406047283,0.07292893,2035.2,2034.9,4.9142]
[1742406047467,6.798,2035.6,2034.9,4.9142]
[1742406047808,6.78,2035.7,2034.8,0.55]
[1742406047953,0.07349699,2035.5,2034.8,3.5987611]
[1742406048152,4.91397,2035.1,2034.5,6.06]
[1742406048352,4.91397,2035.1,2034.4,3.0]
[1742406048690,0.07364387,2035.0,2034.4,3.0]
[1742406048996,0.07364387,2035.0,2034.3,9.83109]
[1742406048997,4.98771387,2035.0,2034.3,4.91566]
[1742406049155,4.98771387,2035.0,2034.1,4.91596]
[1742406049357,4.98771387,2035.0,2034.3,3.0]
[1742406049552,0.07364387,2035.0,2034.4,4.91532]
[1742406049752,0.07364387,2035.0,2034.3,9.28263639]
[1742406049952,0.07364387,2035.0,2033.7,6.864]
[1742406049953,16.994,2035.0,2033.7,6.864]
[1742406050155,4.91497,2034.6,2033.7,6.864]
[1742406050353,6.749,2034.5,2033.7,11.78101]
[1742406050597,4.91558,2034.4,2033.8,7.91687]
[1742406050854,11.7371669,2034.5,2033.8,4.9167]
[1742406050990,0.07307094,2034.3,2034.0,4.91629]
[1742406051192,6.749,2034.5,2034.0,4.91629]
[1742406051193,0.07312485,2034.4,2034.0,4.91629]
[1742406051391,0.0729165,2034.2,2034.0,4.91627]
[1742406051705,4.91489,2034.7,2034.0,4.91627]
[1742406051706,9.82983,2034.7,2034.0,4.91627]
[1742406051872,0.07238733,2034.1,2034.0,7.91627]
[1742406052109,4.91509,2034.6,2034.0,7.91627]
[1742406052273,0.07241155,2034.1,2034.0,3.0]
[1742406052492,4.91564,2034.4,2034.0,3.0]
[1742406052874,4.91514,2034.6,2033.7,0.804]
[1742406052875,0.07272044,2034.3,2033.7,0.804]
[1742406053208,0.07272044,2034.3,2033.5,4.91759]
[1742406053209,11.62085,2034.3,2033.5,4.91745]
[1742406053372,4.91638,2034.1,2033.4,4.91764]
[1742406053578,4.91638,2034.1,2033.5,3.0]
[1742406053771,4.91638,2034.1,2033.3,5.67592]
[1742406053772,4.91682,2033.9,2033.3,4.91792]
[1742406054095,0.07216053,2034.0,2033.7,4.91714]
[1742406054261,0.07171022,2033.8,2033.6,4.91726]
[1742406054468,0.07171022,2033.8,2033.4,4.9177]
[1742406054469,4.91642,2034.0,2033.5,3.0]
[1742406054703,0.07137966,2033.7,2033.5,3.0]
[1742406055013,0.07104902,2033.6,2033.5,4.91751]
[1742406055167,0.07104902,2033.6,2033.4,4.91774]
[1742406055363,4.91648,2034.0,2033.4,4.91763]
[1742406055568,0.0714266,2033.5,2033.4,7.91763]
[1742406055766,4.91648,2034.0,2033.4,7.91763]
[1742406055977,0.0714266,2033.5,2033.4,7.91763]
[1742406056280,6.676,2033.8,2033.4,3.0]
[1742406056468,0.07132599,2033.5,2033.4,3.0]
[1742406056666,6.676,2033.8,2033.5,4.91762]
[1742406057122,6.676,2033.8,2033.7,4.91714]
[1742406057612,1.1e-06,2034.2,2033.8,9.83348]
[1742406057811,11.57534,2034.5,2033.8,4.9167]
[1742406058110,11.57534,2034.5,2034.0,4.91637]
[1742406058271,11.57534,2034.5,2033.9,4.91654]
[1742406058471,16.49069,2034.5,2033.9,4.91654]
[1742406058703,11.57534,2034.5,2033.9,4.91654]
[1742406059010,11.57534,2034.5,2033.9,9.83308]
[1742406059169,11.57534,2034.5,2033.9,9.83309]
[1742406059680,11.57534,2034.5,2033.9,9.83308]
[1742406060077,11.57534,2034.5,2033.9,4.91654]
[1742406060309,21.90987,2034.7,2033.9,5.408254]
[1742406060310,16.995,2034.7,2033.9,5.408254]
[1742406060493,11.53498,2034.6,2034.1,4.91617]
[1742406060704,4.91534,2034.5,2033.9,4.91663]
[1742406061383,4.91559,2034.4,2033.9,3.0]
[1742406061615,4.9158,2034.3,2033.9,3.0]
[1742406061818,6.069149,2034.4,2033.9,3.0]
[1742406061994,9.83117,2034.4,2033.9,3.0]
[1742406062194,0.55,2034.5,2033.9,7.91651]
[1742406062398,5.46534,2034.5,2033.9,7.91651]
[1742406062598,11.50547,2034.4,2033.9,7.91651]
[1742406062793,4.9158,2034.3,2033.8,3.0]
[1742406063325,0.7911,2034.2,2033.8,3.0]
[1742406063528,4.9162,2034.1,2033.6,4.91725]
[1742406063735,0.7911,2034.2,2033.6,4.91722]
[1742406064028,5.70714,2034.2,2033.7,3.0]
[1742406064498,4.91681,2033.9,2033.3,5.64589066]
[1742406064821,6.57,2033.9,2033.3,0.72791066]
[1742406065021,11.978351,2033.9,2033.3,0.72791066]
[1742406065222,11.978351,2033.9,2033.4,3.45753306]
[1742406065223,4.9169,2033.8,2033.4,3.45753306]
[1742406065520,4.91721,2033.7,2033.4,0.45753306]
[1742406065721,24.057681,2033.9,2033.4,0.45753306]
[1742406065938,4.91724,2033.7,2033.4,0.45753306]
[1742406066484,7.3228881,2033.8,2033.4,0.45753306]
[1742406066485,2.4057681,2033.8,2033.4,0.45753306]
[1742406066819,4.91758,2033.6,2033.2,3.0]
[1742406067018,4.918,2033.4,2033.0,0.73301319]
[1742406067228,4.91859,2033.1,2033.0,0.73301319]
[1742406067429,21.91659,2033.1,2033.0,0.73301319]
[1742406067593,24.432949,2033.1,2033.0,0.73301319]
[1742406068007,4.91885,2033.0,2032.6,4.9197]
[1742406068224,4.91885,2033.0,2032.5,3.0]
[1742406068225,4.91908,2032.9,2032.5,4.91985]
[1742406068418,6.531,2032.8,2032.5,4.91985]
[1742406068594,6.531,2032.8,2032.5,3.0]
[1742406068790,6.531,2032.8,2032.5,7.92004]
[1742406069023,6.531,2032.8,2032.1,5.75411]
[1742406069227,4.92002,2032.6,2032.0,4.92105]
[1742406069436,4.92031,2032.4,2031.9,4.92148]
[1742406069602,4.9209,2032.2,2031.7,4.92187]
[1742406069812,6.58351412,2032.3,2031.9,4.92142]
[1742406070037,0.06523821,2032.1,2032.0,4.92115]
[1742406070345,6.517,2032.3,2032.2,4.92077]
[1742406070631,6.512,2032.7,2032.4,4.92014]
[1742406071133,6.5090011,2032.9,2032.7,4.9195]
[1742406071300,16.998,2033.1,2032.7,4.91937]
[1742406071499,6.504,2032.9,2032.7,9.83881]
[1742406071736,6.504,2032.9,2032.7,4.91937]
[1742406072031,6.504,2032.9,2032.8,4.91932]
[1742406072410,16.998,2033.1,2032.9,4.91885]
[1742406072614,16.998,2033.1,2032.6,0.7822]
[1742406072838,16.998,2033.1,2032.7,4.91944]
[1742406073135,16.998,2033.1,2032.9,4.91906]
[1742406073336,16.998,2033.1,2033.0,4.91883]
[1742406075008,16.998,2033.1,2032.9,4.91906]
[1742406075213,2.4057681,2033.8,2032.9,1.807941]
[1742406075410,0.7865,2033.3,2032.9,5.902771]
[1742406075626,0.7865,2033.3,2033.1,4.91859]
[1742406075939,7.2945,2033.3,2033.1,4.91859]
[1742406076333,6.508,2033.3,2033.2,4.91835]
[1742406076741,6.508,2033.3,2032.9,4.91888]
[1742406076934,6.508,2033.3,2033.1,4.91858]
[1742406077238,6.508,2033.3,2033.2,4.91835]
[1742406077537,0.8078,2033.7,2033.2,0.983683]
[1742406077704,4.91636,2034.1,2033.5,4.91746]
[1742406077902,4.91636,2034.1,2033.6,4.91723]
[1742406078203,9.83277,2034.1,2033.6,4.91723]
[1742406078520,0.06146076,2034.0,2033.2,4.91819]
[1742406078722,0.7779,2033.8,2033.1,12.83678]
[1742406078927,4.91732,2033.7,2033.2,4.91814]
[1742406079099,6.89447516,2033.8,2033.4,4.91787]
[1742406079299,0.7779,2033.8,2033.7,4.91714]
[1742406079536,0.7779,2033.8,2033.1,3.0]
[1742406079724,4.91749,2033.6,2033.2,4.91824]
[1742406079898,4.91725,2033.7,2033.2,4.91815]
[1742406080099,4.91751,2033.6,2033.2,4.91815]
[1742406080438,5.6948,2033.8,2033.1,3.0]
[1742406080638,4.91796,2033.4,2032.9,4.91906]
[1742406080953,11.40396,2033.4,2033.0,7.9188]
[1742406081524,11.40396,2033.4,2032.9,7.91904]
[1742406081836,6.486,2033.4,2033.0,4.91874]
[1742406082052,4.91829,2033.3,2032.9,3.0]
[1742406082231,4.91829,2033.3,2032.9,7.91893]
[1742406082436,4.91844,2033.2,2032.7,4.91946]
[1742406082749,4.91844,2033.2,2032.8,4.91923]
[1742406083308,4.91844,2033.2,2032.7,4.91946]
[1742406083508,4.91844,2033.2,2032.1,0.7719]
[1742406083509,4.71195155,2032.9,2032.1,0.7719]
[1742406083851,4.92016,2032.5,2032.0,9.84222]
[1742406084057,4.9209,2032.2,2031.7,10.98194]
[1742406084218,0.7751,2031.8,2031.2,4.92319]
[1742406084420,9.63333155,2032.0,2031.7,4.92185]
[1742406084421,17.003,2032.0,2031.7,4.92185]
[1742406084609,0.05559264,2031.7,2031.6,4.9221]
[1742406084809,4.92171,2031.9,2031.3,4.92273]
[1742406085016,4.92225,2031.6,2031.2,4.92315]
[1742406085312,0.05462726,2031.5,2031.4,4.92255]
[1742406085763,6.473,2031.8,2031.4,4.92255]
[1742406086115,0.05482737,2031.7,2031.4,4.92271]
[1742406086455,0.05482737,2031.7,2031.6,4.92222]
[1742406086955,0.05482737,2031.7,2031.5,4.92246]
[1742406087114,28.37738,2032.0,2031.5,9.84481]
[1742406087468,0.05266627,2031.9,2031.0,7.92366]
[1742406087645,0.05266627,2031.9,2031.8,4.92174]
[1742406087810,0.05266627,2031.9,2031.3,3.0]
[1742406088157,4.97427627,2031.9,2031.4,4.92259]
[1742406088322,4.97427627,2031.9,2031.5,4.92247]
[1742406088323,0.05266627,2031.9,2031.5,4.92247]
[1742406088644,5.03578958,2031.9,2031.5,4.92247]
[1742406088845,6.455,2031.8,2031.4,1.398259]
[1742406089047,6.50774234,2031.8,2031.4,1.398259]
[1742406089248,4.92202,2031.7,2031.3,3.0]
[1742406089414,4.92247,2031.5,2030.9,3.0]
[1742406089616,0.05267213,2031.6,2031.5,4.92247]
[1742406089841,0.05267213,2031.6,2031.0,0.04922674]
[1742406089842,0.05035849,2031.4,2031.2,3.0]
[1742406090047,4.92087,2032.2,2031.5,4.9224]
[1742406090275,5.68282,2032.1,2031.5,5.41464]
[1742406090589,5.68282,2032.1,2031.1,5.92458834]
[1742406090590,4.9215,2031.9,2031.1,3.0]
[1742406090811,6.476,2031.8,2031.0,4.92357]
[1742406090974,0.06153539,2031.7,2030.8,0.829]
[1742406091289,4.92304,2031.3,2030.5,4.92474]
[1742406091461,6.474,2031.2,2030.8,3.0]
[1742406091843,6.474,2031.2,2030.5,1.82020992]
[1742406092043,11.39722,2031.2,2030.6,4.92449]
[1742406092280,6.474,2031.2,2030.8,4.92393]
[1742406092482,6.474,2031.2,2031.0,4.92353]
[1742406092654,6.467,2031.5,2031.2,4.92309]
[1742406092851,4.92184,2031.8,2031.2,9.84611]
[1742406093056,11.3832,2031.7,2031.1,4.92341]
[1742406093286,11.38306,2031.7,2030.9,6.06]
[1742406093444,4.92297,2031.3,2030.9,6.06]
[1742406093788,4.92297,2031.3,2030.8,7.92404]
[1742406093957,4.92322,2031.2,2030.8,3.0]
[1742406094159,6.451,2031.3,2030.6,3.67446999]
[1742406094385,4.9239,2031.0,2030.6,0.67446999]
[1742406094585,4.92348,2031.1,2030.6,4.92453]
[1742406094888,4.92348,2031.1,2030.7,3.0]
[1742406095263,0.811,2031.3,2030.6,7.92465]
[1742406095590,0.811,2031.3,2030.7,4.92426]
[1742406095591,6.436,2031.2,2030.7,4.92426]
[1742406095761,6.436,2031.2,2030.9,4.92379]
[1742406096006,6.436,2031.2,2030.9,4.92378]
[1742406096274,11.3592,2031.2,2030.7,4.92418]
[1742406096472,11.3592,2031.2,2030.7,5.0068969]
[1742406096786,4.92375,2031.0,2030.7,0.0826069]
[1742406097498,4.92344,2031.1,2030.7,5.0069969]
[1742406097648,4.92368,2031.0,2030.7,0.0826069]
[1742406097848,4.92345,2031.1,2030.7,5.0070069]
[1742406098069,13.0687201,2031.2,2030.7,5.0070069]
[1742406098291,8.1453201,2031.2,2030.7,0.0826069]
[1742406098488,6.3980011,2031.2,2031.0,4.92364]
[1742406098690,1.1e-06,2031.2,2031.1,4.92344]
[1742406100477,1.1e-06,2031.2,2031.0,4.92353]
[1742406100792,4.92224,2031.6,2031.0,4.92368]
[1742406101018,6.375,2031.5,2031.2,4.92309]
[1742406101494,4.92293,2031.4,2030.9,5.0064869]
[1742406101698,4.92288,2031.4,2030.9,5.0063369]
[1742406101996,4.92284,2031.4,2031.0,4.92363]
[1742406102205,4.92284,2031.4,2030.9,5.0063369]
[1742406102410,4.92311,2031.3,2030.9,5.0063369]
[1742406102594,11.467736,2031.4,2031.0,4.92362]
[1742406102908,4.92297,2031.3,2030.9,5.0064269]
[1742406103113,6.544866,2031.4,2030.9,9.9302069]
[1742406103282,11.29759,2031.5,2030.9,6.29954759]
[1742406103482,4.92308,2031.3,2030.9,0.0826069]
[1742406103797,4.92366,2031.1,2030.9,0.0826069]
[1742406103992,11.26466,2031.1,2030.9,0.0826069]
[1742406104807,4.92368,2031.0,2030.9,0.0826069]
[1742406105217,6.341,2031.1,2030.9,0.0826069]
[1742406105386,11.26444,2031.1,2030.9,0.0826069]
[1742406105825,5.73257,2031.3,2030.9,0.0826069]
[1742406106033,4.92368,2031.0,2030.9,0.0826069]
[1742406106312,7.1256,2031.3,2030.9,0.0826069]
[1742406106487,4.92329,2031.2,2030.9,0.0826069]
[1742406106822,7.1256,2031.3,2030.9,0.0826069]
[1742406107020,0.8096,2031.3,2030.9,0.0826069]
[1742406107309,6.32,2031.2,2030.9,5.0063469]
[1742406107737,0.8096,2031.3,2030.9,5.0063469]
[1742406107738,0.8096,2031.3,2030.9,0.0826069]
[1742406108017,1.1e-06,2031.4,2031.0,4.92356]
[1742406108184,1.1e-06,2031.4,2031.2,4.92308]
[1742406108388,1.1e-06,2031.4,2031.2,4.92304]
[1742406108818,1.1e-06,2031.4,2031.0,4.92363]
[1742406109013,4.92331,2031.2,2030.9,0.0826069]
[1742406109214,0.06154233,2031.2,2030.9,0.0826069]
[1742406109409,11.21882,2031.4,2031.0,4.92352]
[1742406109629,6.296,2031.4,2031.0,4.92352]
[1742406109948,6.296,2031.4,2031.1,4.92333]
[1742406110106,4.92256,2031.5,2031.0,4.92357]
[1742406110312,6.294,2031.4,2031.1,4.92336]
[1742406110712,6.294,2031.4,2031.2,4.9231]
[1742406111124,11.21685,2031.4,2030.9,5.0064169]
[1742406111357,4.92368,2031.0,2030.9,0.0826069]
[1742406111525,29.05143741,2031.0,2030.9,0.0826069]
[1742406111851,5.6895,2030.4,2029.9,4.92633]
[1742406112034,6.3475749,2030.3,2030.0,4.9261]
[1742406112224,6.286,2030.3,2030.0,4.9261]
[1742406112423,6.286,2030.3,2030.1,4.92572]
[1742406112839,6.286,2030.3,2030.2,4.92562]
[1742406113011,6.284,2030.6,2029.6,4.927]
[1742406113218,6.34556333,2030.6,2029.9,3.0]
[1742406113413,4.92491,2030.5,2029.9,3.0]
[1742406113816,4.92491,2030.5,2030.0,4.92592]
[1742406113817,4.92515,2030.4,2030.0,4.92592]
[1742406114219,4.92491,2030.5,2030.0,4.92592]
[1742406114414,4.9253,2030.4,2029.9,4.92624]
[1742406114633,10.97766749,2030.4,2029.9,4.92624]
[1742406114862,1.12708749,2030.4,2030.1,4.92575]
[1742406115237,11.2088,2030.6,2030.1,9.8515]
[1742406115558,6.28,2030.5,2030.2,4.92549]
[1742406115715,6.28,2030.5,2030.3,4.92526]
[1742406115915,6.28,2030.5,2030.3,9.85044]
[1742406116191,6.28,2030.5,2030.3,4.92518]
[1742406116644,0.7699,2030.8,2030.6,4.92465]
[1742406116975,17.02,2031.0,2030.9,4.92392]
[1742406117171,7.0494,2031.2,2030.9,9.84746]
[1742406117472,11.9728,2031.2,2030.7,4.9242]
[1742406117786,13.27724851,2031.2,2030.8,4.92411]
[1742406117950,8.35384851,2031.2,2030.8,4.92395]
[1742406118339,4.92346,2031.1,2030.7,4.92427]
[1742406118540,8.35384851,2031.2,2030.5,4.92467]
[1742406118541,4.92369,2031.0,2030.5,9.84943]
[1742406118776,4.92344,2031.1,2030.6,4.92462]
[1742406118979,1.12168511,2031.4,2030.7,0.7858]
[1742406119183,4.92349,2031.1,2030.7,0.7858]
[1742406119366,4.92349,2031.1,2030.6,4.92445]
[1742406119367,4.9237,2031.0,2030.6,4.92445]
[1742406119562,4.9232,2031.2,2030.7,4.92434]
[1742406119911,11.16557,2031.1,2030.7,4.92434]